bitfinex/quotes_ETHUSD_20220101
["timestamp","ask_amount","ask_price","bid_price","bid_amount"]
[1641011089113,0.00113685,3713.8,3713.7,0.95]
[1641011095065,0.00113685,3713.8,3713.7,0.9]
[1641011095317,0.00113685,3713.8,3713.7,1.515]
[1641011095919,0.00113685,3713.8,3713.7,3.6401413]
[1641011096216,0.00113685,3713.8,3713.7,3.94178934]
[1641011096516,0.00113685,3713.8,3713.7,21.37491934]
[1641011099959,0.00113685,3713.8,3713.7,19.24813]
[1641011100163,0.00113685,3713.8,3713.7,18.94813]
[1641011100363,0.00113685,3713.8,3713.7,18.275]
[1641011102263,0.00113685,3713.8,3713.7,18.94815]
[1641011103413,0.00113685,3713.8,3713.7,18.275]
[1641011106317,0.00113685,3713.8,3713.7,2.515]
[1641011106982,0.00113685,3713.8,3713.7,1.515]
[1641011107179,0.00113685,3713.8,3713.7,2.515]
[1641011107378,0.00113685,3713.8,3713.7,1.515]
[1641011107579,0.00113685,3713.8,3713.7,2.515]
[1641011107780,0.00113685,3713.8,3713.7,1.515]
[1641011107982,0.00113685,3713.8,3713.7,2.515]
[1641011108384,0.00113685,3713.8,3713.7,1.515]
[1641011108585,0.00113685,3713.8,3713.7,5.21344219]
[1641011108783,1.31513075,3714.7,3713.8,3.5]
[1641011109185,0.00454738,3714.6,3713.8,3.8]
[1641011109386,0.00454738,3714.6,3713.9,18.82336153]
[1641011109591,0.108077,3714.8,3714.1,15.76]
[1641011109592,2.16641307,3714.8,3714.1,15.76]
[1641011109786,2.16641307,3714.8,3714.5,1.21506255]
[1641011109985,0.95082635,3714.9,3714.6,2.08736667]
[1641011110315,0.95082635,3714.9,3714.7,1.0]
[1641011110316,0.216152,3714.8,3714.7,1.0]
[1641011110515,0.216152,3714.8,3714.7,16.76]
[1641011110516,0.21728885,3714.8,3714.7,16.76]
[1641011111117,2.40801208,3714.8,3714.7,16.76]
[1641011111319,2.40801208,3714.8,3714.7,1.0]
[1641011111919,2.40801208,3714.8,3714.7,3.05225359]
[1641011112122,2.40801208,3714.8,3714.7,2.0]
[1641011112722,2.40801208,3714.8,3714.7,1.0]
[1641011112923,5.10801208,3714.8,3714.7,1.0]
[1641011114172,5.10801208,3714.8,3714.3,1.0]
[1641011114474,5.46e-05,3715.7,3715.3,0.65363835]
[1641011114678,4.00887055,3716.2,3715.3,0.65363835]
[1641011114679,2.66260925,3716.2,3715.9,1.60741095]
[1641011115076,1.88533925,3716.2,3715.9,1.60741095]
[1641011115377,1.88533925,3716.2,3715.9,2.20741095]
[1641011115573,4.42267105,3717.1,3715.9,2.20741095]
[1641011115574,1.0,3719.0,3717.4,4.15213359]
[1641011115777,3.51529116,3717.6,3717.5,5.1996686]
[1641011115979,3.51529116,3717.6,3717.5,0.67238]
[1641011116175,4.39411395,3718.2,3717.5,7.35228]
[1641011116379,0.108076,3717.7,3717.5,7.35228]
[1641011116578,0.108076,3717.7,3717.6,1.0]
[1641011116780,0.108076,3717.7,3717.6,22.1398]
[1641011116978,5.56469398,3718.3,3717.7,4.45]
[1641011117181,5.56469398,3718.3,3718.0,0.6723]
[1641011117380,5.56469398,3718.3,3718.1,15.76]
[1641011117580,5.56469398,3718.3,3718.2,1.01088049]
[1641011117808,5.56469398,3718.3,3718.2,2.90108049]
[1641011118018,0.00113684,3718.3,3718.2,2.90108049]
[1641011118213,0.00113684,3718.3,3718.2,3.90108049]
[1641011119317,0.00113684,3718.3,3718.2,6.01284152]
[1641011119817,0.00113684,3718.3,3718.2,21.77284152]
[1641011122869,0.00113684,3718.3,3718.2,3.90108049]
[1641011123270,2.70113684,3718.3,3718.2,3.90108049]
[1641011123870,2.70113684,3718.3,3718.2,2.90108049]
[1641011124070,2.70113684,3718.3,3718.2,2.01088049]
[1641011124468,0.00113684,3718.3,3718.2,2.01088049]
[1641011124870,0.00113684,3718.3,3718.2,1.0]
[1641011125073,0.05921384,3718.4,3718.2,1.0]
[1641011125310,0.05921384,3718.4,3717.9,1.0]
[1641011125710,0.05921384,3718.4,3718.0,0.00170528]
[1641011126412,0.05921384,3718.4,3718.3,1.03125608]
[1641011127011,0.05921384,3718.4,3718.3,1.88445608]
[1641011129271,0.05921384,3718.4,3718.3,1.03125608]
[1641011129471,0.02236994,3718.7,3718.3,1.03125608]
[1641011129872,0.00170527,3718.6,3718.3,1.03125608]
[1641011130275,0.00113685,3718.5,3718.3,1.03125608]
[1641011131277,0.00113685,3718.5,3718.0,0.00170528]
[1641011132377,1.10403782,3718.5,3718.0,0.00170528]
[1641011132577,1.10403782,3718.5,3717.9,0.00227369]
[1641011132827,1.40403782,3718.5,3717.9,0.00227369]
[1641011133028,1.70403782,3718.5,3717.9,0.00227369]
[1641011133228,1.10403782,3718.5,3717.9,0.00227369]
[1641011137674,2.65017704,3718.2,3717.9,0.00227369]
[1641011141031,4.6376072,3718.5,3717.9,0.00227369]
[1641011141229,1.10403782,3718.5,3717.9,0.00227369]
[1641011141429,1.70403782,3718.5,3717.9,0.00227369]
[1641011142039,0.67261,3718.3,3717.9,0.00227369]
[1641011142237,0.01295622,3718.0,3717.3,1.13124151]
[1641011142637,4.15213359,3717.4,3717.3,1.13124151]
[1641011142837,4.15213359,3717.4,3717.3,0.75514151]
[1641011142838,4.76459246,3717.4,3717.3,0.75514151]
[1641011143037,6.99584684,3717.4,3717.3,0.75855205]
[1641011143437,4.83743246,3717.4,3717.3,0.75855205]
[1641011144482,7.52497359,3717.4,3717.3,0.75855205]
[1641011147920,6.85213359,3717.4,3717.3,0.75855205]
[1641011159269,6.85213359,3717.4,3717.3,1.56005205]
[1641011164922,6.85213359,3717.4,3717.3,17.32005205]
[1641011165324,6.85213359,3717.4,3717.3,18.62005205]
[1641011166122,6.85213359,3717.4,3717.3,22.9074206]
[1641011166763,6.85213359,3717.4,3717.3,24.26785007]
[1641011168165,6.85213359,3717.4,3717.3,22.66785007]
[1641011173036,6.85213359,3717.4,3717.3,22.66443953]
[1641011173637,6.85213359,3717.4,3717.3,21.30401006]
[1641011175369,6.96021059,3717.4,3717.3,21.30401006]
[1641011181975,6.96021059,3717.4,3717.3,5.54401006]
[1641011182385,6.96021059,3717.4,3717.3,7.8206195]
[1641011182582,6.96021059,3717.4,3717.3,5.54401006]
[1641011182882,6.96021059,3717.4,3717.3,1.55664151]
[1641011183082,6.96021059,3717.4,3717.3,0.75514151]
[1641011185519,6.85213359,3717.4,3717.3,0.75514151]
[1641011187328,6.85213359,3717.4,3717.3,1.73264151]
[1641011187530,6.96021059,3717.4,3717.3,1.73264151]
[1641011189967,6.96021059,3717.4,3717.3,0.75514151]
[1641011197598,6.85213359,3717.4,3717.3,0.75514151]
[1641011203026,6.96021059,3717.4,3717.3,0.75514151]
[1641011210626,0.108076,3717.6,3717.4,8.00783734]
[1641011210829,0.06233849,3717.8,3717.5,15.76]
[1641011211025,0.06233849,3717.8,3717.5,17.3622737]
[1641011211223,2.65017704,3718.7,3717.7,5.05]
[1641011211425,2.65017704,3718.7,3717.7,21.11]
[1641011211677,2.65017704,3718.7,3718.6,1.17105636]
[1641011211885,2.65017704,3718.7,3718.6,2.12835636]
[1641011212085,2.65472443,3718.7,3718.6,2.12835636]
[1641011212285,0.00454739,3718.7,3718.6,2.12835636]
[1641011214188,0.11262439,3718.7,3718.6,2.12835636]
[1641011214588,0.11262439,3718.7,3718.0,1.0]
[1641011214788,1.2347,3718.5,3718.0,1.0]
[1641011214989,7.7147,3718.5,3718.0,1.0]
[1641011215189,7.7147,3718.5,3717.7,3.98736855]
[1641011215190,2.38222572,3718.4,3717.7,3.98736855]
[1641011215415,2.38222572,3718.4,3717.5,0.0022737]
[1641011215416,2.65017704,3718.3,3717.5,0.0022737]
[1641011215716,0.67265,3717.9,3717.6,1.068404]
[1641011216216,0.67265,3717.9,3717.7,0.00113685]
[1641011217222,0.67255,3718.1,3717.7,0.00113685]
[1641011217623,0.00170527,3718.2,3717.7,0.00113685]
[1641011217824,0.00113685,3718.1,3717.7,0.00113685]
[1641011218222,0.00227369,3718.3,3717.7,0.00113685]
[1641011218626,0.00170527,3718.2,3717.7,0.00113685]
[1641011219084,0.00113685,3718.1,3717.7,0.00113685]
[1641011219484,1.38690655,3718.4,3717.7,0.00113685]
[1641011219682,0.67254,3718.2,3717.7,0.00113685]
[1641011219883,7.4147,3718.5,3717.7,0.00113685]
[1641011219884,0.00227369,3718.3,3717.7,0.00113685]
[1641011220082,0.00113685,3718.1,3717.7,0.00113685]
[1641011220283,0.00170527,3718.2,3717.7,0.00113685]
[1641011220486,0.00284212,3718.4,3717.7,0.00113685]
[1641011220682,0.00113685,3718.1,3717.7,0.00113685]
[1641011220888,0.00227369,3718.3,3717.7,0.00113685]
[1641011221088,0.00284212,3718.4,3717.7,0.00113685]
[1641011221292,0.00170527,3718.2,3717.7,0.00113685]
[1641011221588,0.00113685,3718.1,3717.7,0.00113685]
[1641011221987,0.67253,3718.3,3717.7,0.00113685]
[1641011222386,0.00170527,3718.2,3717.7,0.00113685]
[1641011222817,0.00113685,3718.1,3717.7,0.00113685]
[1641011223222,0.00170527,3718.2,3717.7,0.00113685]
[1641011223623,0.00113685,3718.1,3717.7,0.00113685]
[1641011224023,0.00170527,3718.2,3717.7,0.00113685]
[1641011224522,0.00113685,3718.1,3717.7,0.00113685]
[1641011224929,0.00284212,3718.4,3717.7,0.00113685]
[1641011225225,0.00227369,3718.3,3717.7,0.00113685]
[1641011225625,0.00170527,3718.2,3717.7,0.00113685]
[1641011226027,0.00113685,3718.1,3717.7,0.00113685]
[1641011226330,0.00227369,3718.3,3717.7,0.00113685]
[1641011226767,0.00170527,3718.2,3717.7,0.00113685]
[1641011227070,0.00113685,3718.1,3717.7,0.00113685]
[1641011227477,0.00284212,3718.4,3717.7,0.00113685]
[1641011227772,1.90719,3718.5,3717.7,0.00113685]
[1641011227773,0.00227369,3718.3,3717.7,0.00113685]
[1641011228174,0.67251,3718.1,3717.7,0.00113685]
[1641011228673,0.00284212,3718.4,3717.7,0.00113685]
[1641011229073,0.00227369,3718.3,3717.7,0.00113685]
[1641011229472,0.00170527,3718.2,3717.7,0.00113685]
[1641011229875,0.00113685,3718.1,3717.7,0.00113685]
[1641011230314,0.00170527,3718.2,3717.7,0.00113685]
[1641011230717,0.00113685,3718.1,3717.7,0.00113685]
[1641011231118,0.67420527,3718.2,3717.7,0.00113685]
[1641011231519,0.00113685,3718.1,3717.7,0.00113685]
[1641011241124,2.40932427,3718.1,3717.7,0.00113685]
[1641011241325,0.06073075,3718.0,3717.7,0.00113685]
[1641011241575,0.0128298,3717.8,3717.4,3.24817419]
[1641011241776,1.36722026,3717.7,3717.4,3.24817419]
[1641011241975,1.36722026,3717.7,3717.5,0.00113685]
[1641011242178,4.6112,3717.6,3717.5,0.00113685]
[1641011242376,4.5,3717.5,3715.9,1.36042947]
[1641011242576,0.67285,3716.7,3715.9,1.36042947]
[1641011242777,0.67285,3716.7,3716.0,0.00852635]
[1641011243582,1.37984697,3716.5,3716.0,0.00852635]
[1641011243982,0.67291,3716.3,3716.0,0.00852635]
[1641011245614,0.67291,3716.3,3715.9,0.00909477]
[1641011247217,3.37291,3716.3,3715.9,0.00909477]
[1641011248419,2.7,3716.3,3715.9,0.00909477]
[1641011249869,2.7,3716.3,3715.9,1.36952424]
[1641011250670,2.7,3716.3,3715.9,0.00909477]
[1641011251475,0.3,3716.2,3715.9,0.00909477]
[1641011251672,2.15294883,3716.1,3715.9,0.00909477]
[1641011252072,0.67298,3716.0,3715.9,0.00909477]
[1641011252919,0.97298,3716.0,3715.9,0.00909477]
[1641011253125,0.67297,3715.8,3715.6,0.01080004]
[1641011254523,0.67297,3715.8,3715.0,0.01421058]
[1641011255325,0.67297,3715.8,3715.4,1.13601364]
[1641011255724,0.67297,3715.8,3715.5,0.01136846]
[1641011256125,0.67291,3716.0,3715.5,0.01136846]
[1641011256568,4.04582,3716.3,3715.5,0.01136846]
[1641011257770,0.67287,3716.2,3715.5,0.01136846]
[1641011263130,2.7,3716.3,3715.5,0.01136846]
[1641011264168,2.7,3716.3,3715.6,1.0]
[1641011264467,2.7,3716.3,3715.7,0.01023162]
[1641011264669,3.37286,3716.3,3715.7,0.01023162]
[1641011265271,3.37286,3716.3,3715.8,1.0]
[1641011265669,3.37286,3716.3,3715.9,0.00909477]
[1641011278724,3.37286,3716.3,3715.5,0.01136846]
[1641011282472,2.7,3716.3,3715.5,0.01136846]
[1641011282671,2.7,3716.3,3715.5,1.31136846]
[1641011282926,2.7,3716.3,3715.6,15.76]
[1641011283128,2.7,3716.3,3715.7,1.0]
[1641011283334,2.7,3716.3,3715.7,1.31023162]
[1641011283627,2.7,3716.3,3715.8,0.00966319]
[1641011284628,2.7,3716.3,3715.8,0.68241319]
[1641011285028,2.7,3716.3,3715.9,0.00909477]
[1641011288786,2.7,3716.3,3715.8,0.00966319]
[1641011293533,2.7,3716.3,3715.8,1.37009266]
[1641011293930,2.7,3716.3,3715.9,0.00909477]
[1641011294179,2.7,3716.3,3715.9,0.81759477]
[1641011296881,2.7,3716.3,3715.9,1.36952424]
[1641011297483,2.7,3716.3,3716.0,16.43265]
[1641011297682,2.7,3716.3,3716.2,15.76]
[1641011298123,2.7,3716.3,3716.2,17.0673895]
[1641011298623,2.7,3716.3,3716.2,2.76198207]
[1641011299127,2.7,3716.3,3716.2,1.0073895]
[1641011299323,2.7,3716.3,3716.2,2.0073895]
[1641011299522,2.7,3716.3,3716.2,1.0073895]
[1641011299725,2.7,3716.3,3716.2,2.0073895]
[1641011299924,2.7,3716.3,3716.2,2.38370925]
[1641011300124,2.7,3716.3,3716.2,3.38370925]
[1641011300324,2.7,3716.3,3716.2,2.38370925]
[1641011300525,2.7,3716.3,3716.2,3.38370925]
[1641011300925,2.7,3716.3,3716.2,2.0073895]
[1641011301125,2.7,3716.3,3716.2,1.0073895]
[1641011301326,2.7,3716.3,3716.2,2.0073895]
[1641011305188,2.7,3716.3,3716.2,3.76198207]
[1641011305619,2.7,3716.3,3716.2,2.76198207]
[1641011306226,2.7,3716.3,3716.2,1.76198207]
[1641011306620,2.7,3716.3,3716.2,0.0073895]
[1641011307019,2.7,3716.3,3715.9,0.00909477]
[1641011308622,0.67296,3716.1,3715.9,0.00909477]
[1641011310074,0.67296,3716.1,3715.8,0.00966319]
[1641011311773,2.7,3716.3,3715.8,0.00966319]
[1641011311977,3.3729,3716.3,3715.8,0.00966319]
[1641011314942,2.14932103,3716.2,3715.8,0.00966319]
[1641011315140,0.67294,3716.1,3715.8,0.00966319]
[1641011315541,0.67294,3716.1,3715.8,1.38610765]
[1641011316044,2.7,3716.3,3715.9,0.00909477]
[1641011316244,2.7,3716.3,3715.9,0.88159477]
[1641011316871,2.7,3716.3,3716.1,1.37644446]
[1641011317273,2.7,3716.3,3716.2,0.0073895]
[1641011325879,2.7,3716.3,3716.2,1.38383396]
[1641011328032,2.7,3716.3,3716.2,1.68383396]
[1641011329030,2.7,3716.3,3716.2,0.3073895]
[1641011329231,2.7,3716.3,3716.2,3.06198207]
[1641011329631,2.7,3716.3,3716.2,4.06198207]
[1641011329832,2.7,3716.3,3716.2,3.06198207]
[1641011330034,2.7,3716.3,3716.2,4.06198207]
[1641011332678,2.7,3716.3,3716.2,2.3073895]
[1641011333475,2.7,3716.3,3716.2,2.0073895]
[1641011334479,2.7,3716.3,3716.2,1.0073895]
[1641011335528,2.7,3716.3,3716.2,2.38370991]
[1641011338533,2.7,3716.3,3716.2,1.0073895]
[1641011339175,2.7,3716.3,3716.2,1.3073895]
[1641011339371,2.7,3716.3,3716.2,1.0073895]
[1641011347185,2.7,3716.3,3716.2,1.0]
[1641011350324,2.65,3716.3,3716.2,1.0]
[1641011360547,2.65,3716.3,3716.2,2.37633026]
[1641011361986,4.79415123,3716.3,3716.2,2.37633026]
[1641011362188,4.81140239,3716.3,3716.2,2.37633026]
[1641011363192,2.65,3716.3,3716.2,2.37633026]
[1641011363393,2.65,3716.3,3715.8,2.37633026]
[1641011363794,0.67292,3716.1,3715.9,0.00909477]
[1641011364594,2.184698,3716.2,3715.9,0.00909477]
[1641011364595,2.65,3716.3,3715.9,0.00909477]
[1641011380425,2.65,3716.3,3715.9,1.38542503]
[1641011380825,2.65,3716.3,3716.0,0.00852635]
[1641011382130,2.65,3716.3,3716.0,0.68124635]
[1641011382329,2.65,3716.3,3716.0,0.00852635]
[1641011382531,2.65,3716.3,3716.1,0.00795792]
[1641011382729,2.65,3716.3,3716.0,0.00852635]
[1641011384372,2.65,3716.3,3716.1,1.37633026]
[1641011384771,2.65,3716.3,3716.2,0.0073895]
[1641011389533,2.65,3716.3,3716.2,1.38371976]
[1641011395827,2.65,3716.3,3716.2,0.0073895]
[1641011396229,2.65,3716.3,3716.1,0.00795792]
[1641011397327,2.65,3716.3,3716.0,0.00852635]
[1641011402590,3.32287,3716.3,3716.0,0.00852635]
[1641011406576,3.32287,3716.3,3715.7,1.0]
[1641011406979,3.32287,3716.3,3715.8,0.00966319]
[1641011408180,0.67287,3716.3,3715.8,0.00966319]
[1641011409582,3.17287,3716.3,3715.8,0.00966319]
[1641011409782,3.17287,3716.3,3716.0,0.16320312]
[1641011410182,3.17287,3716.3,3716.1,0.00795792]
[1641011410824,2.5,3716.3,3716.1,0.00795792]
[1641011414990,2.5,3716.3,3716.2,0.16320312]
[1641011415391,2.5,3716.3,3716.2,0.17059262]
[1641011440444,2.45,3716.3,3716.2,0.17059262]
[1641011445491,2.45,3716.3,3716.2,0.16320312]
[1641011451438,3.46046662,3716.0,3715.7,2.75459257]
[1641011451881,3.46046662,3716.0,3715.8,0.00966319]
[1641011453687,3.46046662,3716.0,3715.6,0.01080004]
[1641011455537,3.56854362,3716.0,3715.6,0.01080004]
[1641011461394,5.96854362,3716.0,3715.6,0.01080004]
[1641011461790,5.96854362,3716.0,3715.8,1.37412587]
[1641011462190,5.96854362,3716.0,3715.9,0.00909477]
[1641011465644,5.86046662,3716.0,3715.9,0.00909477]
[1641011466244,5.86046662,3716.0,3715.9,1.38322064]
[1641011471434,5.96854362,3716.0,3715.9,1.38322064]
[1641011475083,5.96854362,3716.0,3715.9,0.00909477]
[1641011475684,5.96854362,3716.0,3715.9,1.38322064]
[1641011476083,5.96854362,3716.0,3715.9,0.00909477]
[1641011476783,5.96854362,3716.0,3715.9,1.38322064]
[1641011480149,5.96854362,3716.0,3715.9,0.00909477]
[1641011481697,5.86046662,3716.0,3715.9,0.00909477]
[1641011482797,5.96854362,3716.0,3715.9,0.00909477]
[1641011488441,5.96854362,3716.0,3715.9,1.38287005]
[1641011493342,5.86046662,3716.0,3715.9,3.59588501]
[1641011493548,5.86046662,3716.0,3715.9,7.54588501]
[1641011493549,1.84407852,3716.0,3715.9,7.54588501]
[1641011493742,0.108077,3716.1,3716.0,4.5]
[1641011493943,0.06234076,3716.8,3716.0,4.5]
[1641011494159,0.06234076,3716.8,3716.0,5.87012635]
[1641011494342,0.06234076,3716.8,3716.7,1.2895099]
[1641011494741,0.17041676,3716.8,3716.7,1.29405728]
[1641011495342,0.108076,3716.8,3716.7,2.29405728]
[1641011495944,0.108076,3716.8,3716.7,1.00454738]
[1641011496245,0.108076,3716.8,3716.7,0.00454738]
[1641011496682,0.108076,3716.8,3716.4,0.00625265]
[1641011497484,1.453856,3716.8,3716.4,0.00625265]
[1641011497684,0.67289,3716.6,3716.2,0.0073895]
[1641011498492,0.108076,3716.8,3716.2,0.0073895]
[1641011499696,0.780896,3716.8,3716.2,0.0073895]
[1641011501135,3.180896,3716.8,3716.2,0.0073895]
[1641011502435,0.780896,3716.8,3716.2,0.0073895]
[1641011504886,0.67282,3716.8,3716.2,0.0073895]
[1641011505884,0.67282,3716.8,3716.2,1.38106518]
[1641011506287,0.67282,3716.8,3716.3,0.00682108]
[1641011506687,0.780896,3716.8,3716.3,0.00682108]
[1641011509348,0.780896,3716.8,3716.2,0.0073895]
[1641011512580,1.73642079,3716.7,3716.2,0.0073895]
[1641011512784,0.67294,3716.5,3716.2,0.0073895]
[1641011512986,1.70052995,3716.4,3716.2,0.0073895]
[1641011513183,2.46952327,3716.5,3716.2,0.0073895]
[1641011513385,0.67294,3716.5,3716.2,0.0073895]
[1641011513986,0.67297,3716.1,3715.7,0.01023162]
[1641011514188,1.34594,3716.3,3715.7,0.01023162]
[1641011514189,1.68205193,3716.3,3715.7,0.01023162]
[1641011514390,0.4024,3716.0,3715.7,0.01023162]
[1641011514588,0.78357,3716.2,3715.7,0.01023162]
[1641011514789,0.9730962,3716.0,3715.7,0.01023162]
[1641011514987,1.2730962,3716.0,3715.7,0.01023162]
[1641011515640,0.67314,3715.9,3715.7,0.01023162]
[1641011515841,0.67314,3715.9,3715.2,0.01307374]
[1641011516041,0.6731557,3715.8,3715.2,0.01307374]
[1641011516444,2.14575679,3715.7,3715.2,0.01307374]
[1641011516641,1.3,3715.7,3715.1,0.01364216]
[1641011516843,2.36582786,3715.6,3715.1,0.01364216]
[1641011517042,0.6732,3715.4,3715.1,0.01364216]
[1641011517242,2.10277113,3715.3,3715.0,0.01421058]
[1641011517442,2.40277113,3715.3,3715.0,0.01421058]
[1641011517647,2.70277113,3715.3,3715.0,0.01421058]
[1641011517846,2.40277113,3715.3,3715.0,0.01421058]
[1641011518052,0.6,3715.3,3715.0,0.01421058]
[1641011518250,0.108076,3715.3,3715.0,0.01421058]
[1641011518447,0.408076,3715.3,3715.0,0.01421058]
[1641011518646,0.67317,3715.2,3715.0,0.01421058]
[1641011520284,0.108076,3715.3,3715.0,0.01421058]
[1641011521087,0.108076,3715.3,3715.0,1.38788626]
[1641011521384,0.108076,3715.3,3715.1,0.01364216]
[1641011521886,0.108076,3715.3,3715.1,4.216e-05]
[1641011521887,0.67312,3715.2,3715.1,4.216e-05]
[1641011522087,4.5,3715.1,3714.9,0.60646642]
[1641011522290,4.5,3714.8,3714.3,1.37367568]
[1641011522489,0.60646642,3714.9,3714.1,1.75459257]
[1641011522490,15.76,3714.5,3714.1,1.75459257]
[1641011522688,0.3,3714.6,3714.4,0.00397896]
[1641011522942,1.95467466,3714.5,3714.4,0.00397896]
[1641011523136,2.36747466,3714.5,3714.4,0.00397896]
[1641011523343,2.06587466,3714.5,3714.4,0.00397896]
[1641011523539,2.3,3714.4,3713.5,0.00909477]
[1641011523736,1.38850466,3714.5,3714.1,0.00568423]
[1641011523935,1.38850466,3714.5,3713.4,0.0096632]
[1641011523936,0.6,3714.4,3713.4,0.0096632]
[1641011524138,1.44916,3714.4,3713.4,0.0096632]
[1641011524338,2.19232329,3714.3,3714.0,1.0]
[1641011524636,2.19232329,3714.3,3714.1,0.00568423]
[1641011524637,2.79232329,3714.3,3714.1,0.00568423]
[1641011524838,2.09111139,3714.2,3714.1,0.00568423]
[1641011525038,2.24413632,3714.2,3714.1,0.00568423]
[1641011525638,2.09111139,3714.2,3713.7,0.00795793]
[1641011525842,3.43791139,3714.2,3713.7,0.00795793]
[1641011526039,3.4232573,3714.2,3713.7,0.00795793]
[1641011526240,1.3468,3714.2,3713.7,0.00795793]
[1641011526686,3.43846464,3714.2,3713.7,0.00795793]
[1641011526987,1.3468,3714.2,3712.9,0.01250531]
[1641011527189,3.43556593,3714.2,3712.9,0.01250531]
[1641011527688,3.43556593,3714.2,3713.5,1.22829995]
[1641011527895,3.43556593,3714.2,3712.9,0.01250531]
[1641011528093,3.73556593,3714.2,3713.6,0.00852635]
[1641011528395,3.73556593,3714.2,3712.9,0.01250531]
[1641011528396,0.67338,3713.9,3712.9,0.01250531]
[1641011528994,0.67338,3713.9,3713.3,1.1009054]
[1641011529395,0.67333,3714.1,3713.4,0.0096632]
[1641011530636,0.67333,3714.1,3713.4,0.00300134]
[1641011531533,0.67333,3714.1,3713.3,1.05390674]
[1641011531836,0.00341054,3714.0,3713.3,1.05390674]
[1641011532234,0.00284212,3713.9,3713.3,1.05390674]
[1641011532436,0.67621212,3713.9,3713.3,1.05390674]
[1641011532637,0.0022737,3713.8,3713.3,1.05390674]
[1641011533143,0.00170527,3713.7,3713.3,1.05390674]
[1641011533544,2.2920473,3714.2,3713.3,1.05390674]
[1641011533545,0.00113685,3713.6,3713.3,1.05390674]
[1641011533945,0.67336,3713.9,3713.3,1.05390674]
[1641011533946,0.108076,3713.9,3713.3,1.05390674]
[1641011534390,0.0022737,3713.8,3713.3,1.05390674]
[1641011534791,0.00170527,3713.7,3713.3,1.05390674]
[1641011535191,0.00113685,3713.6,3713.3,1.05390674]
[1641011535594,0.0022737,3713.8,3713.3,1.05390674]
[1641011535993,0.00170527,3713.7,3713.3,1.05390674]
[1641011536199,0.67510527,3713.7,3713.3,1.05390674]
[1641011536394,0.00113685,3713.6,3713.3,1.05390674]
[1641011536797,0.0022737,3713.8,3713.3,1.05390674]
[1641011536995,0.0022737,3713.8,3712.8,3.6825]
[1641011537199,0.00170527,3713.7,3712.8,3.6825]
[1641011537396,0.00170527,3713.7,3712.9,0.00284211]
[1641011537596,0.00113685,3713.6,3712.9,0.00284211]
[1641011538046,0.0022737,3713.8,3713.5,1.21112218]
[1641011538247,0.108077,3713.7,3713.5,1.21112218]
[1641011538447,0.10978227,3713.7,3713.5,1.21112218]
[1641011538646,0.00113685,3713.6,3713.5,1.21112218]
[1641011548241,0.67454685,3713.6,3712.9,0.00284211]
[1641011549392,0.67454685,3713.6,3713.1,1.37193712]
[1641011549795,0.67454685,3713.6,3713.2,0.00113684]
[1641011552598,0.00113685,3713.6,3713.2,0.00113684]
[1641011553244,0.00113685,3713.6,3713.2,0.73523684]
[1641011554346,0.00113685,3713.6,3713.2,1.40844684]
[1641011555147,0.00113685,3713.6,3713.2,2.70844684]
[1641011555347,0.00113685,3713.6,3713.2,3.00844684]
[1641011555546,0.00113685,3713.6,3713.4,0.67316]
[1641011555946,0.00113685,3713.6,3713.4,0.97316]
[1641011556147,0.00113685,3713.6,3713.4,1.27316]
[1641011556346,0.00113685,3713.6,3713.5,5.84619]
[1641011556793,0.00113685,3713.6,3713.5,6.84619]
[1641011557493,0.00113685,3713.6,3713.5,2.34619]
[1641011557691,0.12402267,3713.7,3713.6,4.5]
[1641011558097,0.12402267,3713.7,3713.6,5.8]
[1641011558498,0.12402267,3713.7,3713.5,1.59899]
[1641011559002,0.12402267,3713.7,3713.5,0.2528]
[1641011559495,0.01594667,3713.7,3713.5,0.2528]
[1641011559895,0.01594667,3713.7,3713.4,0.01201574]
[1641011562143,0.01594667,3713.7,3713.3,0.97321]
[1641011562544,0.01594667,3713.7,3713.4,0.00113684]
[1641011563352,0.01594667,3713.7,3713.4,0.67432684]
[1641011565096,0.12402267,3713.7,3713.4,0.67432684]
[1641011567204,0.108076,3713.7,3713.4,2.04039576]
[1641011568041,0.108076,3713.7,3713.4,2.34039576]
[1641011568240,0.108076,3713.7,3713.5,0.67315]
[1641011568741,0.108076,3713.7,3713.5,1.97315]
[1641011569342,0.108076,3713.7,3713.6,3.87158701]
[1641011569642,0.108076,3713.7,3713.6,2.37158701]
[1641011570040,0.108076,3713.7,3713.5,1.67158701]
[1641011570442,0.108076,3713.7,3713.5,2.67158701]
[1641011570743,0.108076,3713.7,3713.6,2.37158701]
[1641011571988,0.108076,3713.7,3713.6,1.37158701]
[1641011575196,0.108076,3713.9,3713.6,1.37158701]
[1641011575656,0.00113685,3713.8,3713.5,3.34475701]
[1641011575856,0.00113685,3713.8,3713.5,2.34475701]
[1641011576055,0.00113685,3713.8,3713.5,3.34475701]
[1641011577255,0.10921285,3713.8,3713.5,3.34475701]
[1641011577456,0.10921285,3713.8,3713.5,2.67158701]
[1641011577658,0.10921285,3713.8,3713.5,1.67158701]
[1641011577856,0.10921285,3713.8,3713.6,1.0]
[1641011578059,0.10921285,3713.8,3713.5,1.67158701]
[1641011580099,0.10921285,3713.8,3713.7,1.38010532]
[1641011580303,0.10921285,3713.8,3713.5,1.37158701]
[1641011581002,0.10921285,3713.8,3713.4,0.00113684]
[1641011581401,0.10921285,3713.8,3713.3,0.00170527]
[1641011584545,0.15303559,3713.7,3713.3,0.00170527]
[1641011588295,0.15417244,3713.8,3713.3,0.00170527]
[1641011592449,0.26224844,3713.8,3713.3,0.00170527]
[1641011592648,0.26224844,3713.8,3713.4,1.37158701]
[1641011593257,0.15303559,3713.7,3713.4,1.37158701]
[1641011596092,0.15303559,3713.7,3713.3,1.37329228]
[1641011596493,0.15303559,3713.7,3713.4,0.00113685]
[1641011597494,0.15303559,3713.7,3713.3,0.00170527]
[1641011606441,0.15303559,3713.7,3713.3,1.00170527]
[1641011606643,0.15303559,3713.7,3713.4,2.20106013]
[1641011606843,0.15303559,3713.7,3713.5,0.6732]
[1641011607040,0.15303559,3713.7,3713.6,2.15049191]
[1641011607244,0.15303559,3713.7,3713.5,0.6732]
[1641011608048,0.108076,3713.8,3713.5,0.6732]
[1641011608247,0.108076,3713.8,3713.4,3.52649527]
[1641011609609,0.108076,3713.8,3713.4,2.15490826]
[1641011610509,0.108076,3713.8,3713.4,2.10490826]
[1641011610911,0.00170527,3713.7,3713.4,2.10490826]